[Event "Irish New Year Events-GM 2020"]
[Site "Dublin"]
[Date "2020.01.05"]
[Round "7.4"]
[White "Brady, Stephen"]
[Black "Turner, Matthew J"]
[Result "1/2-1/2"]
[ECO "B12"]
[WhiteElo "2285"]
[BlackElo "2521"]
[Annotator "ChessBase"]
[PlyCount "81"]
[EventDate "2020.01.02"]
[EventType "tourn"]
[EventCountry "IRL"]
[SourceTitle "playchess.com"]
[Source "ChessBase"]
[SourceQuality "1"]
[TimeControl "5400+30"]

1. e4 {[%emt 0:02:37]} c6 {[%emt 0:00:00]} 2. d4 {[%emt 0:00:29]} d5 {[%emt 0:00:00]} 3. e5 {[%emt 0:00:53]} c5 {[%emt 0:00:14]} 4. dxc5 {[%emt 0:00:09]} Nc6 {[%emt 0:00:10]} 5. a3 {[%emt 0:00:44]} e6 {[%emt 0:00:10]} 6. Nf3 {[%emt 0:00:26]} Bxc5 {[%emt 0:00:04]} 7. b4 {[%emt 0:00:08]} Bb6 {[%emt 0:00:03]} 8. Bb2 {[%emt 0:00:21]} Nge7 {[%emt 0:00:31]} 9. Bd3 {[%emt 0:02:29]} Ng6 {[%emt 0:00:33]} 10. O-O {[%emt 0:08:47]} O-O {[%emt 0:00:40]} 11. Re1 {[%emt 0:01:30]} f6 {[%emt 0:00:55]} 12. exf6 {[%emt 0:00:56]} gxf6 {[%emt 0:00:04]} 13. c4 {[%emt 0:02:48]} Nf4 {[%emt 0:00:42]} 14. cxd5 {[%emt 0:08:28]} Qxd5 {[%emt 0:02:35]} 15. Bf1 {[%emt 0:12:15]} e5 {[%emt 0:04:43]} 16. Qxd5+ {[%emt 0:23:27]} Nxd5 {[%emt 0:00:31]} 17. Nbd2 {[%emt 0:00:25]} Be6 {[%emt 0:05:43]} 18. Nc4 {[%emt 0:01:02]} Rad8 {[%emt 0:03:49]} 19. Nxb6 {[%emt 0:00:49]} Nxb6 {[%emt 0:00:27]} 20. Rac1 {[%emt 0:01:16]} Rf7 {[%emt 0:03:42]} 21. Bb5 {[%emt 0:04:40]} Bd5 {[%emt 0:01:31]} 22. Nh4 {[%emt 0:02:28]} a6 {[%emt 0:01:39]} 23. Be2 {[%emt 0:00:16]} Kf8 {[%emt 0:04:56]} 24. f4 {[%emt 0:04:58]} exf4 {[%emt 0:11:01]} 25. Bh5 {[%emt 0:01:43]} Nc4 {[%emt 0:00:36]} 26. Bxf7 {[%emt 0:00:10]} Kxf7 {[%emt 0:00:06]} 27. Re2 {[%emt 0:02:07]} Rg8 {[%emt 0:00:50]} 28. Rxc4 {[%emt 0:08:12]} Bxc4 {[%emt 0:07:47]} 29. Re4 {[%emt 0:00:30]} Bb5 {[%emt 0:00:30]} 30. Rxf4 {[%emt 0:00:30]} Rd8 {[%emt 0:00:30]} 31. Rxf6+ {[%emt 0:00:30]} Ke8 {[%emt 0:00:30]} 32. g4 {[%emt 0:00:30]} Rd1+ {[%emt 0:00:30]} 33. Kg2 {[%emt 0:00:30]} Nd4 {[%emt 0:00:30]} 34. Bxd4 {[%emt 0:00:30]} Rxd4 {[%emt 0:00:30]} 35. Kg3 {[%emt 0:00:30]} Bc6 {[%emt 0:50:28]} 36. Re6+ {[%emt 0:09:57]} Kf7 {[%emt 0:00:30]} 37. Re3 h5 38. gxh5 Kf6 39. Ng6 Rd5 40. h4 Rxh5 41. Nf4 1/2-1/2

[Event "Irish New Year Events-GM 2020"]
[Site "Dublin"]
[Date "2020.01.05"]
[Round "7.5"]
[White "Pajeken, Jakob Leon"]
[Black "Li, Henry"]
[Result "1-0"]
[ECO "E62"]
[WhiteElo "2327"]
[BlackElo "2288"]
[Annotator "ChessBase"]
[PlyCount "77"]
[EventDate "2020.01.02"]
[EventType "tourn"]
[EventCountry "IRL"]
[SourceTitle "playchess.com"]
[Source "ChessBase"]
[SourceQuality "1"]
[TimeControl "5400+30"]

1. d4 {[%emt 0:00:00]} Nf6 {[%emt 0:00:38]} 2. Nf3 {[%emt 0:00:00]} g6 {[%emt 0:00:12]} 3. g3 {[%emt 0:00:00]} Bg7 {[%emt 0:00:06]} 4. Bg2 {[%emt 0:00:00]} O-O {[%emt 0:00:10]} 5. O-O {[%emt 0:00:00]} d6 {[%emt 0:00:06]} 6. c4 {[%emt 0:00:00]} Nc6 {[%emt 0:00:11]} 7. Nc3 {[%emt 0:00:02]} e5 {[%emt 0:00:05]} 8. dxe5 {[%emt 0:00:03]} dxe5 {[%emt 0:00:07]} 9. Bg5 {[%emt 0:00:07]} Be6 {[%emt 0:00:05]} 10. Qa4 {[%emt 0:00:05]} Qc8 {[%emt 0:00:31]} 11. Nd2 {[%emt 0:00:09]} Bd7 {[%emt 0:16:15]} 12. Rad1 {[%emt 0:00:47]} Ne8 {[%emt 0:14:18]} 13. Nde4 {[%emt 0:12:40]} Nd4 {[%emt 0:04:46]} 14. Qa3 {[%emt 0:00:31]} f6 {[%emt 0:01:46]} 15. Be3 {[%emt 0:07:06]} Nc2 {[%emt 0:06:41]} 16. Qb3 {[%emt 0:00:50]} Nxe3 {[%emt 0:00:29]} 17. fxe3 {[%emt 0:00:04]} Bc6 {[%emt 0:02:08]} 18. Nd5 {[%emt 0:01:05]} Bxd5 {[%emt 0:03:59]} 19. cxd5 {[%emt 0:01:47]} Nd6 {[%emt 0:00:34]} 20. Rc1 {[%emt 0:01:27]} Qd7 {[%emt 0:02:53]} 21. Nc5 {[%emt 0:02:00]} Qe7 {[%emt 0:00:37]} 22. Ne6 {[%emt 0:01:21]} Rfc8 {[%emt 0:04:53]} 23. Rc3 {[%emt 0:02:21]} a5 {[%emt 0:06:55]} 24. Rfc1 {[%emt 0:03:26]} a4 {[%emt 0:00:13]} 25. Qd1 {[%emt 0:00:20]} Bh6 {[%emt 0:03:04]} 26. Rxc7 {[%emt 0:04:29]} Bxe3+ {[%emt 0:00:23]} 27. Kh1 {[%emt 0:00:13]} Rxc7 {[%emt 0:15:24]} 28. Rxc7 {[%emt 0:01:07]} Qxc7 {[%emt 0:00:05]} 29. Nxc7 {[%emt 0:00:27]} Rc8 {[%emt 0:00:02]} 30. Qc2 {[%emt 0:04:43]} Bb6 {[%emt 0:00:24]} 31. Qxa4 {[%emt 0:01:43]} Rxc7 {[%emt 0:00:07]} 32. h4 {[%emt 0:00:56]} Nf5 {[%emt 0:02:55]} 33. d6 {[%emt 0:05:40]} Rc1+ {[%emt 0:00:30]} 34. Kh2 {[%emt 0:00:30]} Kg7 {[%emt 0:00:30]} 35. d7 {[%emt 0:00:30]} Ne3 36. Qb4 Bd4 {[%emt 0:05:17]} 37. Qe7+ {[%emt 0:05:50]} Kh6 {[%emt 0:00:06]} 38. Qf8+ {[%emt 0:00:03]} Kh5 {[%emt 0:00:06]} 39. Bf3+ {[%emt 0:47:08]} 1-0

[Event "Irish New Year Events-GM 2020"]
[Site "Dublin"]
[Date "2020.01.06"]
[Round "8.2"]
[White "Pang, Khai Jie Ryan"]
[Black "Brady, Stephen"]
[Result "1/2-1/2"]
[ECO "A47"]
[WhiteElo "1841"]
[BlackElo "2285"]
[Annotator "ChessBase"]
[PlyCount "158"]
[EventDate "2020.01.02"]
[EventType "tourn"]
[EventCountry "IRL"]
[SourceTitle "playchess.com"]
[Source "ChessBase"]
[SourceQuality "1"]
[TimeControl "40/5400+30:1800+30"]

1. d4 {[%emt 0:01:40]} Nf6 {[%emt 0:04:35]} 2. Nf3 {[%emt 0:00:17]} e6 {[%emt 0:00:05]} 3. Bf4 {[%emt 0:00:14]} b6 {[%emt 0:00:12]} 4. e3 {[%emt 0:00:21]} Bb7 {[%emt 0:00:06]} 5. h3 {[%emt 0:00:41]} Be7 {[%emt 0:00:09]} 6. Nbd2 {[%emt 0:00:21]} O-O {[%emt 0:00:08]} 7. Bd3 {[%emt 0:00:25]} c5 {[%emt 0:00:07]} 8. c3 {[%emt 0:01:09]} Nc6 {[%emt 0:00:09]} 9. O-O {[%emt 0:00:46]} d6 {[%emt 0:00:26]} 10. Bh2 {[%emt 0:02:18]} Re8 {[%emt 0:05:41]} 11. Qe2 {[%emt 0:10:46]} cxd4 {[%emt 0:07:03]} 12. exd4 {[%emt 0:01:05]} Bf8 {[%emt 0:00:10]} 13. Rfe1 {[%emt 0:04:16]} Ne7 {[%emt 0:08:05]} 14. a4 {[%emt 0:06:44]} Ng6 {[%emt 0:01:11]} 15. a5 {[%emt 0:10:33]} Bc6 {[%emt 0:15:57]} 16. Bb5 {[%emt 0:05:47]} Qd7 {[%emt 0:05:45]} 17. Bxc6 {[%emt 0:01:29]} Qxc6 {[%emt 0:00:06]} 18. Qc4 {[%emt 0:01:38]} Qd7 {[%emt 0:03:52]} 19. axb6 {[%emt 0:13:19]} axb6 {[%emt 0:00:08]} 20. Ra6 {[%emt 0:01:15]} b5 {[%emt 0:09:19]} 21. Qa2 {[%emt 0:00:17]} Rab8 {[%emt 0:00:43]} 22. Ra7 {[%emt 0:03:08]} Qc6 {[%emt 0:00:22]} 23. Ng5 {[%emt 0:01:43]} Rb7 {[%emt 0:07:53]} 24. Ra8 {[%emt 0:00:48]} Rxa8 {[%emt 0:02:23]} 25. Qxa8 {[%emt 0:00:10]} Nd5 {[%emt 0:02:26]} 26. Ra1 {[%emt 0:01:36]} Nb6 {[%emt 0:05:47]} 27. Qa6 {[%emt 0:02:59]} Qd5 {[%emt 0:02:44]} 28. Ngf3 {[%emt 0:03:36]} Nc4 {[%emt 0:01:34]} 29. b3 {[%emt 0:03:24]} Nxd2 {[%emt 0:00:23]} 30. Nxd2 {[%emt 0:00:07]} Nh4 {[%emt 0:00:23]} 31. Nf3 {[%emt 0:02:20]} Nxf3+ {[%emt 0:00:08]} 32. gxf3 {[%emt 0:00:03]} Rb8 {[%emt 0:01:50]} 33. Kg2 {[%emt 0:09:58]} h5 {[%emt 0:02:02]} 34. c4 {[%emt 0:03:04]} bxc4 {[%emt 0:00:43]} 35. Qxc4 {[%emt 0:00:19]} Qg5+ {[%emt 0:01:48]} 36. Kh1 {[%emt 0:00:04]} Qf5 {[%emt 0:00:17]} 37. Kg2 {[%emt 0:00:38]} Kh7 {[%emt 0:03:19]} 38. Rd1 {[%emt 0:03:28]} d5 {[%emt 0:01:19]} 39. Qd3 {[%emt 0:00:19]} Qxd3 {[%emt 0:00:30]} 40. Rxd3 {[%emt 0:00:04]} Rb4 {[%emt 0:00:13]} 41. Bf4 {[%emt 0:30:16]} Kg6 {[%emt 0:30:32]} 42. Bd2 {[%emt 0:00:14]} Rb6 {[%emt 0:00:15]} 43. Be3 {[%emt 0:00:34]} Kf5 {[%emt 0:00:59]} 44. Rc3 {[%emt 0:00:33]} Bd6 {[%emt 0:00:24]} 45. Kf1 {[%emt 0:00:33]} g5 {[%emt 0:01:25]} 46. Kg2 {[%emt 0:00:28]} f6 {[%emt 0:00:06]} 47. Kf1 {[%emt 0:00:41]} Bh2 {[%emt 0:02:48]} 48. Kg2 {[%emt 0:01:03]} Bb8 {[%emt 0:00:05]} 49. Kf1 {[%emt 0:00:12]} Bd6 {[%emt 0:00:11]} 50. Kg2 {[%emt 0:00:27]} Ba3 {[%emt 0:01:21]} 51. Kf1 {[%emt 0:00:26]} Bb2 {[%emt 0:00:08]} 52. Rd3 {[%emt 0:00:09]} Rb5 {[%emt 0:00:10]} 53. Ke2 {[%emt 0:00:46]} e5 {[%emt 0:00:13]} 54. Kf1 {[%emt 0:01:55]} e4 {[%emt 0:03:37]} 55. fxe4+ {[%emt 0:00:12]} Kxe4 {[%emt 0:00:03]} 56. Ke2 {[%emt 0:00:47]} g4 {[%emt 0:00:05]} 57. hxg4 {[%emt 0:00:07]} hxg4 {[%emt 0:00:01]} 58. Bd2 {[%emt 0:01:29]} Bxd4 {[%emt 0:00:08]} 59. f3+ {[%emt 0:00:06]} gxf3+ {[%emt 0:00:15]} 60. Rxf3 {[%emt 0:00:05]} Be5 {[%emt 0:00:43]} 61. Re3+ {[%emt 0:00:47]} Kf5 {[%emt 0:00:02]} 62. b4 {[%emt 0:01:52]} d4 {[%emt 0:01:20]} 63. Rh3 {[%emt 0:01:22]} Ke4 {[%emt 0:00:11]} 64. Rh4+ {[%emt 0:00:29]} Kd5 {[%emt 0:00:34]} 65. Kd3 {[%emt 0:00:07]} Rb8 {[%emt 0:01:22]} 66. Rh7 {[%emt 0:00:18]} Ra8 {[%emt 0:00:52]} 67. Rd7+ {[%emt 0:00:16]} Kc6 {[%emt 0:00:04]} 68. Rf7 {[%emt 0:00:44]} Ra2 {[%emt 0:00:49]} 69. Rf8 {[%emt 0:02:41]} Rb2 {[%emt 0:00:21]} 70. Ra8 {[%emt 0:01:17]} Kd5 {[%emt 0:00:36]} 71. Ra5+ {[%emt 0:00:19]} Ke6 {[%emt 0:00:24]} 72. Ra8 {[%emt 0:00:36]} Bd6 {[%emt 0:01:00]} 73. Ra6 {[%emt 0:00:28]} Kd5 {[%emt 0:02:06]} 74. Ra5+ {[%emt 0:00:08]} Kc6 {[%emt 0:00:07]} 75. Ra6+ {[%emt 0:00:14]} Kc7 {[%emt 0:00:26]} 76. Bh6 {[%emt 0:01:06]} Rxb4 {[%emt 0:00:25]} 77. Rxd6 {[%emt 0:00:41]} Rb3+ {[%emt 0:00:05]} 78. Kc4 {[%emt 0:00:11]} Kxd6 {[%emt 0:00:09]} 79. Kxb3 {[%emt 0:00:08]} Kd5 {[%emt 0:05:07]} 1/2-1/2

[Event "Irish New Year Events-GM 2020"]
[Site "Dublin"]
[Date "2020.01.06"]
[Round "8.4"]
[White "Astaneh Lopez, Alex"]
[Black "Kosten, Anthony C."]
[Result "1-0"]
[ECO "E11"]
[WhiteElo "2432"]
[BlackElo "2402"]
[Annotator "RC"]
[PlyCount "113"]
[EventDate "2020.01.02"]
[EventType "tourn"]
[EventCountry "IRL"]
[SourceTitle "playchess.com"]
[Source "ChessBase"]
[SourceQuality "1"]
[TimeControl "40/5400+30:1800+30"]

1. d4 {[%emt 0:12:40]} Nf6 {[%emt 0:00:00]} 2. c4 {[%emt 0:00:04]} e6 {[%emt 0:00:00]} 3. Nf3 {[%emt 0:00:04]} Bb4+ {[%emt 0:00:18]} 4. Nbd2 {[%emt 0:00:07]} O-O {[%emt 0:00:59]} 5. a3 {[%emt 0:00:04]} Be7 {[%emt 0:00:05]} 6. e4 {[%emt 0:00:32]} d6 {[%emt 0:00:08]} 7. Qc2 {[%emt 0:08:54]} Nfd7 {[%emt 0:01:10]} 8. b4 {[%emt 0:02:03]} a5 {[%emt 0:03:40]} 9. Bb2 {[%emt 0:02:21]} axb4 {[%emt 0:00:14]} 10. axb4 {[%emt 0:00:04]} Rxa1+ {[%emt 0:00:06]} 11. Bxa1 {[%emt 0:00:03]} e5 {[%emt 0:02:03]} 12. d5 {[%emt 0:01:29]} Na6 {[%emt 0:07:40]} 13. Bc3 {[%emt 0:02:16]} c6 {[%emt 0:01:10]} 14. Be2 {[%emt 0:05:25]} cxd5 {[%emt 0:01:10]} 15. cxd5 {[%emt 0:03:16]} Qc7 {[%emt 0:00:41]} 16. Qb3 {[%emt 0:01:53]} Nb6 {[%emt 0:03:03]} 17. O-O {[%emt 0:06:47]} Bd7 {[%emt 0:03:49]} 18. Rc1 {[%emt 0:02:13]} Na4 {[%emt 0:01:36]} 19. Bb2 {[%emt 0:00:26]} Qb8 {[%emt 0:01:13]} 20. Ba3 {[%emt 0:04:32]} b5 {[%emt 0:01:07]} 21. Nb1 {[%emt 0:08:14]} Bd8 {[%emt 0:00:52]} 22. Nc3 {[%emt 0:01:55]} Nxc3 {[%emt 0:00:14]} 23. Rxc3 {[%emt 0:01:02]} Bb6 {[%emt 0:00:34]} 24. Bc1 {[%emt 0:00:11]} Rc8 {[%emt 0:02:53]} 25. Bd2 {[%emt 0:02:00]} Rxc3 {[%emt 0:01:46]} 26. Qxc3 {[%emt 0:01:55]} h6 {[%emt 0:01:38]} 27. h3 {[%emt 0:12:13]} Qa7 {[%emt 0:01:40]} 28. Be1 {[%emt 0:01:12]} Nc7 {[%emt 0:00:46]} 29. Nd2 {[%emt 0:04:32]} Qa2 {[%emt 0:10:44]} 30. Kf1 {[%emt 0:02:23]} Kf8 {[%emt 0:18:16]} 31. Bg4 {[%emt 0:00:51]} f5 {[%emt 0:03:01]} 32. Bxf5 {[%emt 0:00:51]} Bxf5 {[%emt 0:08:57]} 33. Qf3 {[%emt 0:00:06]} g6 {[%emt 0:03:33]} 34. g4 {[%emt 0:00:45]} Qc2 {[%emt 0:01:07]} 35. gxf5 {[%emt 0:00:18]} gxf5 {[%emt 0:00:23]} 36. Qxf5+ {[%emt 0:00:23]} Ke7 {[%emt 0:00:07]} 37. Nf3 {[%emt 0:04:35]} Qd3+ {[%emt 0:03:37]} 38. Kg2 {[%emt 0:00:24]} Qe2 {[%emt 0:00:22]} 39. Qh7+ {[%emt 0:01:46]} Ke8 {[%emt 0:00:16]} 40. Qg6+ {[%emt 0:00:58]} Kd7 {[%emt 0:01:05]} 41. Qg4+ {[%emt 0:30:11]} Ke7 {[%emt 0:33:01]} 42. Nxe5 {[%emt 0:00:10]} Qxg4+ {[%emt 0:01:08]} 43. Nxg4 {[%emt 0:00:05]} h5 {[%emt 0:00:07]} 44. Nh6 {[%emt 0:00:29]} Kf6 {[%emt 0:00:48]} 45. Bc3+ {[%emt 0:00:08]} Kg6 {[%emt 0:00:21]} 46. Nf5 {[%emt 0:00:04]} Nxd5 {[%emt 0:01:05]} 47. Nh4+ {[%emt 0:00:05]} Kg5 {[%emt 0:00:07]} 48. exd5 {[%emt 0:00:05]} Kf4 {[%emt 0:01:35]} 49. Ng6+ {[%emt 0:04:10]} Ke4 {[%emt 0:00:29]} 50. Ne7 {[%emt 0:00:40]} Kd3 {[%emt 0:00:43]} 51. Be1 {[%emt 0:00:59]} Ke2 {[%emt 0:01:16]} 52. Nc8 {[%emt 0:00:11]} Bd4 {[%emt 0:00:22]} 53. Nxd6 {[%emt 0:00:16]} Kxe1 {[%emt 0:00:06]} 54. Nxb5 {[%emt 0:00:10]} Bxf2 {[%emt 0:00:20]} 55. d6 {[%emt 0:00:03]} Bb6 {[%emt 0:00:31]} 56. Nc3 {[%emt 0:00:21]} Kd2 {[%emt 0:01:51]} 57. Nd5 {[%emt 0:00:10]} 1-0

[Event "Irish New Year Events-GM 2020"]
[Site "Dublin"]
[Date "2020.01.06"]
[Round "8.5"]
[White "Pajeken, Jakob Leon"]
[Black "Collins, Sam E."]
[Result "1/2-1/2"]
[ECO "D79"]
[WhiteElo "2327"]
[BlackElo "2446"]
[Annotator "RC"]
[PlyCount "42"]
[EventDate "2020.01.02"]
[EventType "tourn"]
[EventCountry "IRL"]
[SourceTitle "playchess.com"]
[Source "ChessBase"]
[SourceQuality "1"]
[TimeControl "40/5400+30:1800+30"]

1. d4 {[%emt 0:00:00]} Nf6 {[%emt 1:30:30]} 2. Nf3 {[%emt 0:00:00]} g6 {[%emt 0:00:16]} 3. g3 {[%emt 0:00:00]} Bg7 {[%emt 0:00:18]} 4. Bg2 {[%emt 0:00:00]} d5 {[%emt 0:00:24]} 5. O-O {[%emt 0:00:25]} c6 {[%emt 0:00:31]} 6. Ne5 {[%emt 0:00:16]} O-O {[%emt 0:00:52]} 7. c4 {[%emt 0:00:34]} Ne4 {[%emt 1:31:00]} 8. cxd5 {[%emt 0:03:03]} cxd5 {[%emt 0:00:48]} 9. Nc3 {[%emt 0:05:33]} Nxc3 {[%emt 0:00:34]} 10. bxc3 {[%emt 0:00:07]} Nc6 {[%emt 0:05:18]} 11. Nxc6 {[%emt 0:01:18]} bxc6 {[%emt 0:00:06]} 12. Ba3 {[%emt 0:06:28]} Ba6 {[%emt 0:01:00]} 13. Re1 {[%emt 0:04:57]} Re8 {[%emt 0:00:54]} 14. Bc5 {[%emt 0:02:15]} Bf8 {[%emt 0:10:14]} 15. Qa4 {[%emt 0:09:35]} Bb5 {[%emt 0:01:15]} 16. Qc2 {[%emt 0:01:19]} e5 {[%emt 0:08:11]} 17. Bxf8 {[%emt 0:01:32]} Kxf8 {[%emt 0:00:51]} 18. e4 {[%emt 0:00:57]} exd4 {[%emt 0:26:18]} 19. cxd4 {[%emt 0:00:58]} Bc4 {[%emt 0:01:03]} 20. exd5 {[%emt 1:00:43]} Rxe1+ 21. Rxe1 Bxd5 {[%emt 0:01:00]} 1/2-1/2

[Event "Irish New Year Events-GM 2020"]
[Site "Dublin"]
[Date "2020.01.06"]
[Round "9.1"]
[White "Li, Henry"]
[Black "Brady, Stephen"]
[Result "0-1"]
[ECO "B09"]
[WhiteElo "2288"]
[BlackElo "2285"]
[Annotator "ChessBase"]
[PlyCount "72"]
[EventDate "2020.01.02"]
[EventType "tourn"]
[EventCountry "IRL"]
[SourceTitle "playchess.com"]
[Source "ChessBase"]
[SourceQuality "1"]
[TimeControl "40/5400+30:1800+30"]

1. e4 {[%emt 0:00:00]} d6 {[%emt 0:07:01]} 2. d4 {[%emt 0:03:31]} Nf6 {[%emt 0:00:05]} 3. Nc3 {[%emt 0:00:05]} g6 {[%emt 0:00:05]} 4. f4 {[%emt 0:00:10]} Bg7 {[%emt 0:00:07]} 5. Nf3 {[%emt 0:00:08]} O-O {[%emt 0:00:08]} 6. e5 {[%emt 0:00:11]} Nfd7 {[%emt 0:00:42]} 7. Bc4 {[%emt 0:00:16]} Nb6 {[%emt 0:00:22]} 8. Bb3 {[%emt 0:00:05]} Nc6 {[%emt 0:00:36]} 9. a4 {[%emt 0:00:06]} Na5 {[%emt 0:00:49]} 10. Ba2 {[%emt 0:00:05]} c5 {[%emt 0:00:10]} 11. dxc5 {[%emt 0:07:27]} dxc5 {[%emt 0:00:06]} 12. Qe2 {[%emt 0:03:35]} c4 {[%emt 0:14:23]} 13. Be3 {[%emt 0:05:04]} Be6 {[%emt 0:00:33]} 14. Rd1 {[%emt 0:11:21]} Qc8 {[%emt 0:00:39]} 15. Qf2 {[%emt 0:00:37]} f6 {[%emt 0:03:19]} 16. Bxb6 {[%emt 0:11:08]} axb6 {[%emt 0:00:12]} 17. Nd5 {[%emt 0:09:46]} Bxd5 {[%emt 0:06:04]} 18. Rxd5 {[%emt 0:00:06]} Qc6 {[%emt 0:00:15]} 19. Rb5 {[%emt 0:04:26]} Qe4+ {[%emt 0:15:54]} 20. Qe2 {[%emt 0:00:05]} Qxf4 {[%emt 0:00:05]} 21. O-O {[%emt 0:00:05]} fxe5 {[%emt 0:00:26]} 22. Kh1 {[%emt 0:01:22]} Kh8 {[%emt 0:08:31]} 23. Re1 {[%emt 0:01:24]} Nc6 {[%emt 0:02:30]} 24. Bxc4 {[%emt 0:01:25]} Rxa4 {[%emt 0:00:51]} 25. b3 {[%emt 0:01:12]} Ra2 {[%emt 0:00:23]} 26. Rxb6 {[%emt 0:03:00]} e4 {[%emt 0:13:50]} 27. Qxe4 {[%emt 0:01:12]} Qxe4 {[%emt 0:00:09]} 28. Rxe4 {[%emt 0:00:05]} Ra1+ {[%emt 0:00:15]} 29. Re1 {[%emt 0:01:06]} Rxe1+ {[%emt 0:00:07]} 30. Nxe1 {[%emt 0:00:06]} Ra8 {[%emt 0:00:06]} 31. Rxb7 {[%emt 0:01:46]} Ra1 {[%emt 0:00:17]} 32. Kg1 {[%emt 0:00:06]} Rxe1+ {[%emt 0:02:40]} 33. Kf2 {[%emt 0:00:06]} Rc1 {[%emt 0:01:27]} 34. Rc7 {[%emt 0:02:34]} Rxc2+ {[%emt 0:01:16]} 35. Ke3 {[%emt 0:03:34]} Bh6+ {[%emt 0:00:39]} 36. Ke4 {[%emt 0:00:14]} Na5 {[%emt 0:00:39]} 0-1

[Event "Irish New Year Events-GM 2020"]
[Site "Dublin"]
[Date "2020.01.06"]
[Round "9.3"]
[White "Pert, Nicholas"]
[Black "Pajeken, Jakob Leon"]
[Result "1/2-1/2"]
[ECO "D20"]
[WhiteElo "2558"]
[BlackElo "2327"]
[Annotator "RC"]
[PlyCount "95"]
[EventDate "2020.01.02"]
[EventType "tourn"]
[EventCountry "IRL"]
[SourceTitle "playchess.com"]
[Source "ChessBase"]
[SourceQuality "1"]
[TimeControl "40/5400+30:1800+30"]

1. d4 {[%emt 0:04:24]} d5 {[%emt 0:00:00]} 2. c4 {[%emt 0:00:05]} dxc4 {[%emt 0:00:00]} 3. e4 {[%emt 0:00:09]} Nf6 {[%emt 0:00:14]} 4. e5 {[%emt 0:00:31]} Nd5 {[%emt 0:00:05]} 5. Bxc4 {[%emt 0:00:10]} Bf5 {[%emt 0:00:11]} 6. Nf3 {[%emt 0:04:54]} e6 {[%emt 0:00:38]} 7. Nc3 {[%emt 0:02:05]} Nb6 {[%emt 0:02:15]} 8. Bb5+ {[%emt 0:06:48]} c6 {[%emt 0:04:32]} 9. Bd3 {[%emt 0:00:53]} Bxd3 {[%emt 0:06:03]} 10. Qxd3 {[%emt 0:00:03]} Na6 {[%emt 0:02:29]} 11. O-O {[%emt 0:00:45]} Qd7 {[%emt 0:04:15]} 12. Rd1 {[%emt 0:08:36]} Nb4 {[%emt 0:09:27]} 13. Qe4 {[%emt 0:03:20]} N4d5 {[%emt 0:01:02]} 14. a3 {[%emt 0:10:01]} c5 {[%emt 0:05:59]} 15. Bd2 {[%emt 0:11:42]} c4 {[%emt 0:01:51]} 16. Rac1 {[%emt 0:01:44]} Rc8 {[%emt 0:03:58]} 17. Ne2 {[%emt 0:02:21]} Na4 {[%emt 0:08:06]} 18. Rc2 {[%emt 0:03:53]} b5 {[%emt 0:02:04]} 19. Qg4 {[%emt 0:02:26]} a6 {[%emt 0:11:16]} 20. Ng5 {[%emt 0:01:54]} c3 {[%emt 0:07:05]} 21. bxc3 {[%emt 0:04:34]} Bxa3 {[%emt 0:02:15]} 22. Ne4 {[%emt 0:00:05]} O-O {[%emt 0:03:03]} 23. Nf6+ {[%emt 0:02:46]} Nxf6 {[%emt 0:00:08]} 24. exf6 {[%emt 0:00:03]} g6 {[%emt 0:00:01]} 25. c4 {[%emt 0:02:35]} Rfd8 {[%emt 0:02:09]} 26. c5 {[%emt 0:01:20]} e5 {[%emt 0:00:41]} 27. Qg5 {[%emt 0:05:08]} Qf5 {[%emt 0:01:43]} 28. Qxf5 {[%emt 0:02:14]} gxf5 {[%emt 0:00:02]} 29. Ba5 {[%emt 0:01:02]} Rd5 {[%emt 0:00:48]} 30. Nc3 {[%emt 0:07:58]} Nxc3 {[%emt 0:02:43]} 31. Rxc3 {[%emt 0:00:12]} Bxc5 {[%emt 0:00:49]} 32. Kf1 {[%emt 0:02:59]} exd4 {[%emt 0:01:13]} 33. Rg3+ {[%emt 0:00:21]} Kh8 {[%emt 0:01:30]} 34. Rg7 {[%emt 0:00:48]} Rd7 {[%emt 0:01:50]} 35. Rd3 {[%emt 0:01:17]} Rg8 {[%emt 0:03:14]} 36. Rxg8+ {[%emt 0:02:26]} Kxg8 {[%emt 0:14:21]} 37. Rg3+ {[%emt 0:00:03]} Kf8 {[%emt 0:00:00]} 38. Rg5 {[%emt 0:01:09]} Rd5 {[%emt 0:00:00]} 39. Rh5 {[%emt 0:00:08]} d3 {[%emt 0:00:00]} 40. Rxh7 {[%emt 0:00:09]} Ke8 {[%emt 0:00:00]} 41. Rh8+ {[%emt 0:31:38]} Kd7 {[%emt 0:21:17]} 42. h4 {[%emt 0:00:14]} Ke6 {[%emt 0:01:09]} 43. Bd2 {[%emt 0:02:08]} Rd6 {[%emt 0:03:54]} 44. h5 {[%emt 0:00:23]} Bd4 {[%emt 0:07:40]} 45. h6 {[%emt 0:04:06]} Bxf6 {[%emt 0:00:30]} 46. Re8+ {[%emt 0:00:30]} Kd7 47. Rg8 b4 {[%emt 0:01:00]} 48. Rg6 {[%emt 0:01:00]} 1/2-1/2